[Event "Titled Tuesday Blitz July 18 Early 2023"]
[White "Wagh Suyog"]
[Black "Garsky, Vladyslav"]
[WhiteFideId "25071688"]
[BlackFideId "34100270"]
[WhiteElo "2814"]
[BlackElo "2398"]
[Result "0-1"]
[Round "4"]
[TimeControl "180+2"]
[Date "2023.07.18"]
[WhiteClock "0:00:02"]
[BlackClock "0:00:17"]
[Board "118"]

1. e4 {[%clk 0:03:00]}  c6 {[%clk 0:02:59]} 2. d4 {[%clk 0:02:58]}  d5 {[%clk 0:03:00]} 3. e5 {[%clk 0:02:58]}  c5 {[%clk 0:03:00]} 4. dxc5 {[%clk 0:02:53]}  e6 {[%clk 0:02:59]} 5. a3 {[%clk 0:02:52]}  Bxc5 {[%clk 0:02:56]} 6. Qg4 {[%clk 0:02:51]}  Kf8 {[%clk 0:02:50]} 7. b4 {[%clk 0:02:51]}  Be7 {[%clk 0:02:49]} 8. Nf3 {[%clk 0:02:39]}  f6 {[%clk 0:02:47]} 9. Bb2 {[%clk 0:02:24]}  Nh6 {[%clk 0:02:43]} 10. Qf4 {[%clk 0:02:20]}  Nf7 {[%clk 0:02:30]} 11. Bd3 {[%clk 0:01:54]}  Nc6 {[%clk 0:02:13]} 12. exf6 {[%clk 0:01:51]}  Bxf6 {[%clk 0:02:13]} 13. Bxf6 {[%clk 0:01:47]}  Qxf6 {[%clk 0:02:13]} 14. Qxf6 {[%clk 0:01:46]}  gxf6 {[%clk 0:02:14]} 15. O-O {[%clk 0:01:24]}  e5 {[%clk 0:02:14]} 16. Be2 {[%clk 0:01:24]}  Be6 {[%clk 0:02:12]} 17. Nbd2 {[%clk 0:01:23]}  Rg8 {[%clk 0:02:11]} 18. c4 {[%clk 0:01:19]}  d4 {[%clk 0:02:10]} 19. Rfe1 {[%clk 0:01:15]}  Bf5 {[%clk 0:01:59]} 20. c5 {[%clk 0:01:13]}  Rd8 {[%clk 0:01:56]} 21. Bc4 {[%clk 0:01:09]}  Ne7 {[%clk 0:01:54]} 22. Ne4 {[%clk 0:01:06]}  Bxe4 {[%clk 0:01:54]} 23. Rxe4 {[%clk 0:01:07]}  f5 {[%clk 0:01:50]} 24. Rxe5 {[%clk 0:00:49]}  Nxe5 {[%clk 0:01:49]} 25. Nxe5 {[%clk 0:00:50]}  Rg7 {[%clk 0:01:45]} 26. Nd3 {[%clk 0:00:47]}  Ng6 {[%clk 0:01:44]} 27. Kf1 {[%clk 0:00:38]}  Re7 {[%clk 0:01:42]} 28. Rd1 {[%clk 0:00:23]}  Ne5 {[%clk 0:01:42]} 29. Nxe5 {[%clk 0:00:22]}  Rxe5 {[%clk 0:01:42]} 30. Bd3 {[%clk 0:00:22]}  Kg7 {[%clk 0:01:36]} 31. g3 {[%clk 0:00:21]}  Kf6 {[%clk 0:01:35]} 32. Rc1 {[%clk 0:00:20]}  Rc8 {[%clk 0:01:33]} 33. Rc4 {[%clk 0:00:18]}  Rd5 {[%clk 0:01:32]} 34. Ke2 {[%clk 0:00:18]}  Re8+ {[%clk 0:01:31]} 35. Kd2 {[%clk 0:00:18]}  Kg5 {[%clk 0:01:28]} 36. c6 {[%clk 0:00:13]}  bxc6 {[%clk 0:01:22]} 37. Rxc6 {[%clk 0:00:14]}  f4 {[%clk 0:01:22]} 38. gxf4+ {[%clk 0:00:10]}  Kxf4 {[%clk 0:01:22]} 39. Bxh7 {[%clk 0:00:09]}  Rh8 {[%clk 0:01:23]} 40. Rc7 {[%clk 0:00:08]}  Rh5 {[%clk 0:01:21]} 41. Bd3 {[%clk 0:00:04]}  Rxh2 {[%clk 0:01:20]} 42. Rf7+ {[%clk 0:00:04]}  Kg4 {[%clk 0:01:16]} 43. b5 {[%clk 0:00:02]}  Kh3 {[%clk 0:00:46]} 44. Rg7 {[%clk 0:00:02]}  Rxf2+ {[%clk 0:00:45]} 45. Ke1 {[%clk 0:00:03]}  Ra2 {[%clk 0:00:40]} 46. Rd7 {[%clk 0:00:03]}  Rc8 {[%clk 0:00:32]} 47. Be2 {[%clk 0:00:02]}  Rc1+ {[%clk 0:00:29]} 48. Bd1 {[%clk 0:00:02]}  Rh2 {[%clk 0:00:19]} 49. Rxd4 {[%clk 0:00:01]}  Rh1+ {[%clk 0:00:19]} 50. Ke2 {[%clk 0:00:02]}  Ra1 {[%clk 0:00:18]} 51. a4 {[%clk 0:00:02]}  Kg3 {[%clk 0:00:17]} 52. Rd3+ {[%clk 0:00:02]}  Kf4 {[%clk 0:00:17]} 53. Bb3 {[%clk 0:00:02]}  Rh2# {[%clk 0:00:17]} 0-1


[Site "https://www.chess.com"]

[Event "Titled Tuesday Blitz July 18 Early 2023"]
[White "Agibileg, Uurtsaikh"]
[Black "Romero Ruscalleda, Josep"]
[WhiteFideId "4901606"]
[BlackFideId "2231859"]
[WhiteElo "2617"]
[BlackElo "2397"]
[Result "1-0"]
[Round "4"]
[TimeControl "180+2"]
[Date "2023.07.18"]
[WhiteClock "0:00:55"]
[BlackClock "0:00:22"]
[Board "120"]

1. d4 {[%clk 0:03:00]}  g6 {[%clk 0:03:00]} 2. c4 {[%clk 0:02:52]}  Bg7 {[%clk 0:03:01]} 3. Nc3 {[%clk 0:02:44]}  d6 {[%clk 0:03:01]} 4. e4 {[%clk 0:02:44]}  e5 {[%clk 0:03:01]} 5. Be3 {[%clk 0:02:41]}  Nc6 {[%clk 0:03:00]} 6. d5 {[%clk 0:02:40]}  Nce7 {[%clk 0:03:00]} 7. g4 {[%clk 0:02:37]}  f5 {[%clk 0:02:56]} 8. gxf5 {[%clk 0:02:37]}  gxf5 {[%clk 0:02:57]} 9. exf5 {[%clk 0:02:37]}  Bxf5 {[%clk 0:02:55]} 10. Nf3 {[%clk 0:02:32]}  Nf6 {[%clk 0:02:44]} 11. Nh4 {[%clk 0:02:32]}  Bg4 {[%clk 0:02:37]} 12. Be2 {[%clk 0:02:32]}  Qd7 {[%clk 0:02:35]} 13. Bxg4 {[%clk 0:02:19]}  Qxg4 {[%clk 0:02:29]} 14. Qxg4 {[%clk 0:02:11]}  Nxg4 {[%clk 0:02:29]} 15. Rg1 {[%clk 0:02:12]}  Nxe3 {[%clk 0:02:29]} 16. fxe3 {[%clk 0:02:13]}  Bf6 {[%clk 0:02:28]} 17. Nf3 {[%clk 0:02:08]}  Kd7 {[%clk 0:02:24]} 18. Ne4 {[%clk 0:02:06]}  Raf8 {[%clk 0:02:21]} 19. Ke2 {[%clk 0:02:07]}  Nf5 {[%clk 0:02:17]} 20. Raf1 {[%clk 0:02:06]}  Bd8 {[%clk 0:02:12]} 21. Nfg5 {[%clk 0:01:51]}  Bxg5 {[%clk 0:01:48]} 22. Rxg5 {[%clk 0:01:51]}  Ne7 {[%clk 0:01:38]} 23. Nf6+ {[%clk 0:01:45]}  Kc8 {[%clk 0:01:33]} 24. Rg7 {[%clk 0:01:45]}  Ng6 {[%clk 0:01:16]} 25. Nxh7 {[%clk 0:01:32]}  Rxf1 {[%clk 0:01:08]} 26. Kxf1 {[%clk 0:01:33]}  b6 {[%clk 0:01:04]} 27. Kf2 {[%clk 0:01:29]}  Nf8 {[%clk 0:01:00]} 28. Nxf8 {[%clk 0:01:25]}  Rxf8+ {[%clk 0:01:01]} 29. Kg3 {[%clk 0:01:26]}  Rf1 {[%clk 0:00:58]} 30. Rh7 {[%clk 0:01:18]}  Rg1+ {[%clk 0:00:56]} 31. Kf3 {[%clk 0:01:17]}  Rf1+ {[%clk 0:00:51]} 32. Ke4 {[%clk 0:01:17]}  Rf2 {[%clk 0:00:47]} 33. b4 {[%clk 0:01:14]}  Rxa2 {[%clk 0:00:45]} 34. h4 {[%clk 0:01:08]}  a5 {[%clk 0:00:44]} 35. bxa5 {[%clk 0:01:06]}  bxa5 {[%clk 0:00:44]} 36. Kd3 {[%clk 0:00:59]}  a4 {[%clk 0:00:41]} 37. Kc3 {[%clk 0:00:59]}  Re2 {[%clk 0:00:40]} 38. Kb4 {[%clk 0:01:00]}  Rxe3 {[%clk 0:00:39]} 39. Kxa4 {[%clk 0:00:59]}  Rh3 {[%clk 0:00:36]} 40. Kb5 {[%clk 0:00:58]}  Kb7 {[%clk 0:00:36]} 41. c5 {[%clk 0:00:58]}  dxc5 {[%clk 0:00:29]} 42. d6 {[%clk 0:00:57]}  Kc8 {[%clk 0:00:25]} 43. Kc6 {[%clk 0:00:56]}  Kb8 {[%clk 0:00:22]} 44. dxc7+ {[%clk 0:00:55]} 1-0


[Site "https://www.chess.com"]

[Event "Titled Tuesday Blitz July 18 Early 2023"]
[White "Melikhov, Evgeny V."]
[Black "WynnZawHtun82"]
[WhiteFideId "4122046"]
[WhiteElo "2397"]
[BlackElo "2599"]
[Result "1-0"]
[Round "4"]
[TimeControl "180+2"]
[Date "2023.07.18"]
[WhiteClock "0:00:32"]
[BlackClock "0:00:04"]
[Board "121"]

1. d4 {[%clk 0:03:00]}  Nf6 {[%clk 0:02:59]} 2. c4 {[%clk 0:02:57]}  e6 {[%clk 0:02:59]} 3. Nc3 {[%clk 0:02:57]}  d5 {[%clk 0:03:00]} 4. cxd5 {[%clk 0:02:57]}  exd5 {[%clk 0:03:00]} 5. Bg5 {[%clk 0:02:57]}  Be7 {[%clk 0:03:00]} 6. e3 {[%clk 0:02:57]}  c6 {[%clk 0:03:00]} 7. Qc2 {[%clk 0:02:57]}  O-O {[%clk 0:02:59]} 8. Bd3 {[%clk 0:02:57]}  Nbd7 {[%clk 0:03:00]} 9. Nf3 {[%clk 0:02:56]}  Re8 {[%clk 0:03:00]} 10. O-O {[%clk 0:02:56]}  Nf8 {[%clk 0:03:00]} 11. h3 {[%clk 0:02:56]}  Ng6 {[%clk 0:02:53]} 12. Ne5 {[%clk 0:02:55]}  Nd7 {[%clk 0:02:20]} 13. Bxe7 {[%clk 0:02:45]}  Qxe7 {[%clk 0:02:20]} 14. f4 {[%clk 0:02:45]}  Nb6 {[%clk 0:01:57]} 15. Rae1 {[%clk 0:02:34]}  Nf8 {[%clk 0:01:57]} 16. Qf2 {[%clk 0:02:18]}  f6 {[%clk 0:01:51]} 17. Nf3 {[%clk 0:02:16]}  Be6 {[%clk 0:01:51]} 18. g4 {[%clk 0:02:12]}  Nbd7 {[%clk 0:01:24]} 19. Kh1 {[%clk 0:02:06]}  b5 {[%clk 0:01:22]} 20. Rg1 {[%clk 0:01:58]}  a6 {[%clk 0:01:18]} 21. f5 {[%clk 0:01:34]}  Bf7 {[%clk 0:01:17]} 22. g5 {[%clk 0:01:29]}  fxg5 {[%clk 0:01:17]} 23. Nxg5 {[%clk 0:01:26]}  Nf6 {[%clk 0:01:15]} 24. Nxf7 {[%clk 0:01:05]}  Qxf7 {[%clk 0:01:14]} 25. Rg5 {[%clk 0:01:01]}  h6 {[%clk 0:01:02]} 26. Rg3 {[%clk 0:00:55]}  b4 {[%clk 0:00:54]} 27. Ne2 {[%clk 0:00:53]}  N8h7 {[%clk 0:00:44]} 28. Reg1 {[%clk 0:00:49]}  Ng5 {[%clk 0:00:44]} 29. h4 {[%clk 0:00:50]}  Nfe4 {[%clk 0:00:16]} 30. Bxe4 {[%clk 0:00:44]}  Nxe4 {[%clk 0:00:15]} 31. Rxg7+ {[%clk 0:00:42]}  Qxg7 {[%clk 0:00:12]} 32. Rxg7+ {[%clk 0:00:41]}  Kxg7 {[%clk 0:00:13]} 33. Qf4 {[%clk 0:00:37]}  Nf6 {[%clk 0:00:08]} 34. Qc7+ {[%clk 0:00:34]}  Kh8 {[%clk 0:00:06]} 35. Nf4 {[%clk 0:00:34]}  Rg8 {[%clk 0:00:03]} 36. Ng6+ {[%clk 0:00:33]}  Rxg6 {[%clk 0:00:03]} 37. fxg6 {[%clk 0:00:34]}  Rg8 {[%clk 0:00:04]} 38. h5 {[%clk 0:00:33]}  Nxh5 {[%clk 0:00:04]} 39. Qh7# {[%clk 0:00:32]} 1-0


[Site "https://www.chess.com"]

[Event "Titled Tuesday Blitz July 18 Early 2023"]
[White "Rian, Kapriaga"]
[Black "Colas, Joshua"]
[WhiteFideId "7103263"]
[BlackFideId "2044447"]
[WhiteElo "2388"]
[BlackElo "2582"]
[Result "0-1"]
[Round "4"]
[TimeControl "180+2"]
[Date "2023.07.18"]
[WhiteClock "0:00:00"]
[BlackClock "0:00:56"]
[Board "123"]

1. d4 {[%clk 0:02:59]}  Nf6 {[%clk 0:02:57]} 2. Nf3 {[%clk 0:02:59]}  d5 {[%clk 0:02:57]} 3. Bf4 {[%clk 0:02:59]}  e6 {[%clk 0:02:57]} 4. Nbd2 {[%clk 0:02:58]}  Bd6 {[%clk 0:02:58]} 5. Bg5 {[%clk 0:02:59]}  Nbd7 {[%clk 0:02:57]} 6. e4 {[%clk 0:02:56]}  dxe4 {[%clk 0:02:57]} 7. Nxe4 {[%clk 0:02:57]}  Be7 {[%clk 0:02:57]} 8. Bxf6 {[%clk 0:02:53]}  Nxf6 {[%clk 0:02:49]} 9. Bd3 {[%clk 0:02:53]}  c5 {[%clk 0:02:47]} 10. Nxc5 {[%clk 0:02:22]}  Bxc5 {[%clk 0:02:34]} 11. dxc5 {[%clk 0:02:22]}  Qa5+ {[%clk 0:02:35]} 12. c3 {[%clk 0:02:19]}  Qxc5 {[%clk 0:02:35]} 13. O-O {[%clk 0:02:19]}  O-O {[%clk 0:02:35]} 14. Qe2 {[%clk 0:02:18]}  b6 {[%clk 0:02:35]} 15. Ba6 {[%clk 0:02:04]}  Qa5 {[%clk 0:02:18]} 16. Bxc8 {[%clk 0:02:01]}  Raxc8 {[%clk 0:02:19]} 17. Rfd1 {[%clk 0:01:58]}  h6 {[%clk 0:02:19]} 18. h3 {[%clk 0:01:58]}  Rfd8 {[%clk 0:02:19]} 19. Ne5 {[%clk 0:01:53]}  Rxd1+ {[%clk 0:02:14]} 20. Rxd1 {[%clk 0:01:49]}  Qxa2 {[%clk 0:02:15]} 21. Rd2 {[%clk 0:01:36]}  Qb1+ {[%clk 0:01:56]} 22. Kh2 {[%clk 0:01:34]}  Qf5 {[%clk 0:01:55]} 23. Nf3 {[%clk 0:00:54]}  Nd5 {[%clk 0:01:46]} 24. Qa6 {[%clk 0:00:45]}  Rc7 {[%clk 0:01:42]} 25. Qb5 {[%clk 0:00:38]}  Kh7 {[%clk 0:01:34]} 26. c4 {[%clk 0:00:25]}  Qf4+ {[%clk 0:01:23]} 27. Kg1 {[%clk 0:00:22]}  Qxc4 {[%clk 0:01:23]} 28. Qe8 {[%clk 0:00:18]}  Qf4 {[%clk 0:01:18]} 29. Rd1 {[%clk 0:00:13]}  Rc2 {[%clk 0:01:17]} 30. b3 {[%clk 0:00:11]}  Nc3 {[%clk 0:01:15]} 31. Re1 {[%clk 0:00:09]}  Ne2+ {[%clk 0:01:14]} 32. Kf1 {[%clk 0:00:08]}  Nd4 {[%clk 0:01:12]} 33. Qd7 {[%clk 0:00:00]}  Nxf3 {[%clk 0:00:56]} 0-1


[Site "https://www.chess.com"]

[Event "Titled Tuesday Blitz July 18 Early 2023"]
[White "Duarte, Leonardo"]
[Black "Fonseca Manrique, Enrique"]
[WhiteFideId "110582"]
[BlackFideId "5114330"]
[WhiteElo "2387"]
[BlackElo "2580"]
[Result "0-1"]
[Round "4"]
[TimeControl "180+2"]
[Date "2023.07.18"]
[WhiteClock "0:00:00"]
[BlackClock "0:00:50"]
[Board "124"]

1. e4 {[%clk 0:02:44]}  c5 {[%clk 0:03:00]} 2. Nf3 {[%clk 0:02:43]}  e6 {[%clk 0:03:00]} 3. d4 {[%clk 0:02:40]}  cxd4 {[%clk 0:03:01]} 4. Nxd4 {[%clk 0:02:41]}  Nc6 {[%clk 0:03:02]} 5. Nc3 {[%clk 0:02:32]}  Qc7 {[%clk 0:03:02]} 6. Be3 {[%clk 0:02:32]}  a6 {[%clk 0:03:02]} 7. Qd2 {[%clk 0:02:31]}  Nf6 {[%clk 0:03:00]} 8. f3 {[%clk 0:02:31]}  Be7 {[%clk 0:02:59]} 9. O-O-O {[%clk 0:02:27]}  b5 {[%clk 0:02:59]} 10. g4 {[%clk 0:02:27]}  Bb7 {[%clk 0:02:58]} 11. g5 {[%clk 0:02:26]}  Nh5 {[%clk 0:02:58]} 12. Kb1 {[%clk 0:02:12]}  Nxd4 {[%clk 0:02:58]} 13. Bxd4 {[%clk 0:02:12]}  O-O {[%clk 0:02:57]} 14. Ne2 {[%clk 0:02:00]}  e5 {[%clk 0:02:44]} 15. Bc3 {[%clk 0:01:53]}  a5 {[%clk 0:02:27]} 16. Qxd7 {[%clk 0:01:47]}  Rfc8 {[%clk 0:01:52]} 17. Qxc7 {[%clk 0:01:36]}  Rxc7 {[%clk 0:01:52]} 18. Bxe5 {[%clk 0:01:36]}  Rc5 {[%clk 0:01:49]} 19. Bd6 {[%clk 0:01:08]}  Rd8 {[%clk 0:01:36]} 20. Bh3 {[%clk 0:00:25]}  Rxd6 {[%clk 0:01:29]} 21. Rxd6 {[%clk 0:00:24]}  Bxd6 {[%clk 0:01:30]} 22. Rd1 {[%clk 0:00:20]}  Bf8 {[%clk 0:01:26]} 23. Bg4 {[%clk 0:00:20]}  Rxg5 {[%clk 0:01:18]} 24. h4 {[%clk 0:00:20]}  Rc5 {[%clk 0:01:18]} 25. Rd7 {[%clk 0:00:07]}  Bc8 {[%clk 0:01:14]} 26. Rd8 {[%clk 0:00:05]}  Bxg4 {[%clk 0:01:10]} 27. fxg4 {[%clk 0:00:06]}  Nf6 {[%clk 0:01:08]} 28. Nc3 {[%clk 0:00:03]}  Nxg4 {[%clk 0:00:57]} 29. Nd5 {[%clk 0:00:04]}  g6 {[%clk 0:00:56]} 30. h5 {[%clk 0:00:01]}  Kg7 {[%clk 0:00:51]} 31. h6+ {[%clk 0:00:00]}  Nxh6 {[%clk 0:00:50]} 0-1


[Site "https://www.chess.com"]

[Event "Titled Tuesday Blitz July 18 Early 2023"]
[White "Jegorovas, Aleksandras"]
[Black "Sadykov, Ramil"]
[WhiteFideId "12801950"]
[BlackFideId "24113590"]
[WhiteElo "2385"]
[BlackElo "2579"]
[Result "0-1"]
[Round "4"]
[TimeControl "180+2"]
[Date "2023.07.18"]
[WhiteClock "0:01:22"]
[BlackClock "0:01:15"]
[Board "125"]

1. d4 {[%clk 0:02:25]}  Nf6 {[%clk 0:02:59]} 2. c4 {[%clk 0:02:24]}  e6 {[%clk 0:03:00]} 3. Nf3 {[%clk 0:02:23]}  c5 {[%clk 0:03:00]} 4. e3 {[%clk 0:02:23]}  cxd4 {[%clk 0:02:59]} 5. exd4 {[%clk 0:02:22]}  d5 {[%clk 0:02:45]} 6. Nc3 {[%clk 0:02:22]}  Nc6 {[%clk 0:02:42]} 7. cxd5 {[%clk 0:02:16]}  Nxd5 {[%clk 0:02:41]} 8. Bd3 {[%clk 0:02:15]}  Bd6 {[%clk 0:02:33]} 9. O-O {[%clk 0:02:15]}  O-O {[%clk 0:02:29]} 10. Re1 {[%clk 0:02:13]}  Bf4 {[%clk 0:02:21]} 11. Nxd5 {[%clk 0:02:09]}  Bxc1 {[%clk 0:02:21]} 12. Rxc1 {[%clk 0:02:05]}  Qxd5 {[%clk 0:02:05]} 13. Rc5 {[%clk 0:02:04]}  Qd6 {[%clk 0:01:51]} 14. Bxh7+ {[%clk 0:02:03]}  Kxh7 {[%clk 0:01:46]} 15. Ng5+ {[%clk 0:02:01]}  Kg6 {[%clk 0:01:44]} 16. Qg4 {[%clk 0:01:50]}  f5 {[%clk 0:01:27]} 17. Qh4 {[%clk 0:01:48]}  Qxd4 {[%clk 0:01:20]} 18. Qh7+ {[%clk 0:01:22]}  Kxg5 {[%clk 0:01:15]} 0-1


[Site "https://www.chess.com"]

[Event "Titled Tuesday Blitz July 18 Early 2023"]
[White "Davidson, Kevin"]
[Black "The_Sherman_Variation"]
[WhiteFideId "2056810"]
[WhiteElo "2374"]
[BlackElo "2573"]
[Result "0-1"]
[Round "4"]
[TimeControl "180+2"]
[Date "2023.07.18"]
[WhiteClock "0:00:00"]
[BlackClock "0:01:14"]
[Board "126"]

1. e4 {[%clk 0:03:00]}  e5 {[%clk 0:02:56]} 2. Nf3 {[%clk 0:03:00]}  Nc6 {[%clk 0:02:54]} 3. Bb5 {[%clk 0:03:00]}  a6 {[%clk 0:02:54]} 4. Ba4 {[%clk 0:02:57]}  Nf6 {[%clk 0:02:53]} 5. O-O {[%clk 0:02:54]}  Bc5 {[%clk 0:02:53]} 6. c3 {[%clk 0:02:30]}  b5 {[%clk 0:02:48]} 7. Bc2 {[%clk 0:02:14]}  d6 {[%clk 0:02:48]} 8. d4 {[%clk 0:02:05]}  Bb6 {[%clk 0:02:48]} 9. a4 {[%clk 0:01:56]}  Bb7 {[%clk 0:02:46]} 10. Na3 {[%clk 0:01:46]}  b4 {[%clk 0:02:41]} 11. Nc4 {[%clk 0:01:46]}  bxc3 {[%clk 0:02:36]} 12. bxc3 {[%clk 0:01:43]}  O-O {[%clk 0:02:33]} 13. a5 {[%clk 0:01:30]}  Ba7 {[%clk 0:02:31]} 14. dxe5 {[%clk 0:01:27]}  dxe5 {[%clk 0:02:31]} 15. Qxd8 {[%clk 0:01:24]}  Rfxd8 {[%clk 0:02:32]} 16. Bg5 {[%clk 0:01:18]}  Re8 {[%clk 0:02:29]} 17. Bxf6 {[%clk 0:01:16]}  gxf6 {[%clk 0:02:29]} 18. Nh4 {[%clk 0:01:06]}  Bc8 {[%clk 0:02:29]} 19. Ba4 {[%clk 0:01:05]}  Re6 {[%clk 0:02:25]} 20. Rfd1 {[%clk 0:01:00]}  Bb7 {[%clk 0:02:12]} 21. Rd7 {[%clk 0:00:50]}  Ne7 {[%clk 0:02:07]} 22. Re1 {[%clk 0:00:37]}  Rc8 {[%clk 0:01:50]} 23. g3 {[%clk 0:00:25]}  Kf8 {[%clk 0:01:48]} 24. Nf5 {[%clk 0:00:16]}  Nxf5 {[%clk 0:01:42]} 25. exf5 {[%clk 0:00:16]}  Re7 {[%clk 0:01:43]} 26. Rb1 {[%clk 0:00:13]}  Be4 {[%clk 0:01:38]} 27. Rb2 {[%clk 0:00:06]}  Bxf5 {[%clk 0:01:38]} 28. Rxe7 {[%clk 0:00:06]}  Kxe7 {[%clk 0:01:38]} 29. Rb7 {[%clk 0:00:06]}  Bc5 {[%clk 0:01:36]} 30. Bc6 {[%clk 0:00:03]}  Kd8 {[%clk 0:01:28]} 31. Kg2 {[%clk 0:00:03]}  Be6 {[%clk 0:01:27]} 32. Ne3 {[%clk 0:00:02]}  Bd7 {[%clk 0:01:21]} 33. Bxd7 {[%clk 0:00:02]}  Kxd7 {[%clk 0:01:22]} 34. Kf3 {[%clk 0:00:02]}  Kc6 {[%clk 0:01:21]} 35. Rb2 {[%clk 0:00:02]}  Rd8 {[%clk 0:01:21]} 36. Ke4 {[%clk 0:00:02]}  Bxe3 {[%clk 0:01:17]} 37. fxe3 {[%clk 0:00:02]}  Rd5 {[%clk 0:01:18]} 38. Rf2 {[%clk 0:00:02]}  Rd6 {[%clk 0:01:14]} 39. c4 {[%clk 0:00:00]}  Kc5 {[%clk 0:01:14]} 0-1


[Site "https://www.chess.com"]

[Event "Titled Tuesday Blitz July 18 Early 2023"]
[White "Garcia Blanco, Omar"]
[Black "Mejia, Cherry Ann"]
[WhiteFideId "2287153"]
[BlackFideId "5206880"]
[WhiteElo "2571"]
[BlackElo "2374"]
[Result "1-0"]
[Round "4"]
[TimeControl "180+2"]
[Date "2023.07.18"]
[WhiteClock "0:02:37"]
[BlackClock "0:01:43"]
[Board "127"]

1. e4 {[%clk 0:03:00]}  c5 {[%clk 0:02:59]} 2. Nc3 {[%clk 0:03:01]}  a6 {[%clk 0:02:59]} 3. g3 {[%clk 0:03:01]}  b5 {[%clk 0:02:59]} 4. Bg2 {[%clk 0:03:02]}  Bb7 {[%clk 0:03:00]} 5. Nge2 {[%clk 0:03:03]}  e6 {[%clk 0:03:01]} 6. d4 {[%clk 0:03:03]}  cxd4 {[%clk 0:03:00]} 7. Nxd4 {[%clk 0:03:04]}  Qc7 {[%clk 0:03:01]} 8. O-O {[%clk 0:03:04]}  Nf6 {[%clk 0:03:02]} 9. Re1 {[%clk 0:03:04]}  d6 {[%clk 0:03:02]} 10. a4 {[%clk 0:03:03]}  b4 {[%clk 0:03:02]} 11. Nd5 {[%clk 0:03:04]}  exd5 {[%clk 0:02:49]} 12. exd5+ {[%clk 0:03:05]}  Be7 {[%clk 0:02:49]} 13. Nf5 {[%clk 0:03:00]}  O-O {[%clk 0:02:44]} 14. Rxe7 {[%clk 0:03:00]}  Qc8 {[%clk 0:02:40]} 15. Bh3 {[%clk 0:02:51]}  Nbd7 {[%clk 0:02:20]} 16. Bg5 {[%clk 0:02:37]}  Qc5 {[%clk 0:02:04]} 17. Bxf6 {[%clk 0:02:36]}  Nxf6 {[%clk 0:01:53]} 18. Rxb7 {[%clk 0:02:37]}  Nxd5 {[%clk 0:01:43]} 19. Qxd5 {[%clk 0:02:37]} 1-0


[Site "https://www.chess.com"]

[Event "Titled Tuesday Blitz July 18 Early 2023"]
[White "Gavrilov, Maxim"]
[Black "Omariev, Maksim"]
[WhiteFideId "24271454"]
[BlackFideId "4193423"]
[WhiteElo "2558"]
[BlackElo "2368"]
[Result "0-1"]
[Round "4"]
[TimeControl "180+2"]
[Date "2023.07.18"]
[WhiteClock "0:00:00"]
[BlackClock "0:00:05"]
[Board "129"]

1. d4 {[%clk 0:02:56]}  h5 {[%clk 0:02:58]} 2. c4 {[%clk 0:02:55]}  h4 {[%clk 0:02:57]} 3. h3 {[%clk 0:02:55]}  d6 {[%clk 0:02:57]} 4. Nc3 {[%clk 0:02:55]}  Nc6 {[%clk 0:02:57]} 5. e4 {[%clk 0:02:55]}  e5 {[%clk 0:02:57]} 6. Nf3 {[%clk 0:02:55]}  exd4 {[%clk 0:02:54]} 7. Nxd4 {[%clk 0:02:55]}  Nxd4 {[%clk 0:02:55]} 8. Qxd4 {[%clk 0:02:55]}  Ne7 {[%clk 0:02:55]} 9. Bg5 {[%clk 0:02:50]}  Be6 {[%clk 0:02:51]} 10. Be2 {[%clk 0:02:49]}  Qd7 {[%clk 0:02:51]} 11. O-O-O {[%clk 0:02:44]}  Nc6 {[%clk 0:02:43]} 12. Qe3 {[%clk 0:02:40]}  f6 {[%clk 0:02:34]} 13. Bf4 {[%clk 0:02:40]}  g5 {[%clk 0:02:35]} 14. Bh2 {[%clk 0:02:39]}  Bh6 {[%clk 0:02:36]} 15. Kb1 {[%clk 0:02:27]}  O-O-O {[%clk 0:02:32]} 16. Nd5 {[%clk 0:02:24]}  Rhf8 {[%clk 0:01:37]} 17. c5 {[%clk 0:02:10]}  Kb8 {[%clk 0:01:21]} 18. cxd6 {[%clk 0:02:02]}  cxd6 {[%clk 0:01:22]} 19. Bb5 {[%clk 0:01:59]}  Ka8 {[%clk 0:00:38]} 20. Nb4 {[%clk 0:01:49]}  Qc7 {[%clk 0:00:36]} 21. Rc1 {[%clk 0:01:41]}  Qa5 {[%clk 0:00:25]} 22. Nxc6 {[%clk 0:01:29]}  Qxa2+ {[%clk 0:00:24]} 23. Kc2 {[%clk 0:01:28]}  bxc6 {[%clk 0:00:16]} 24. Bxc6+ {[%clk 0:01:27]}  Kb8 {[%clk 0:00:16]} 25. Ra1 {[%clk 0:01:17]}  Qc4+ {[%clk 0:00:12]} 26. Kb1 {[%clk 0:01:17]}  Qxc6 {[%clk 0:00:06]} 27. Qxa7+ {[%clk 0:01:16]}  Kc8 {[%clk 0:00:06]} 28. Rc1 {[%clk 0:01:14]}  Bc4 {[%clk 0:00:07]} 29. Qa8+ {[%clk 0:00:54]}  Qxa8 {[%clk 0:00:03]} 30. Rxa8+ {[%clk 0:00:55]}  Kb7 {[%clk 0:00:04]} 31. Rxd8 {[%clk 0:00:55]}  Bd3+ {[%clk 0:00:04]} 32. Ka2 {[%clk 0:00:53]}  Rxd8 {[%clk 0:00:04]} 33. f3 {[%clk 0:00:48]}  f5 {[%clk 0:00:04]} 34. e5 {[%clk 0:00:29]}  dxe5 {[%clk 0:00:04]} 35. Bxe5 {[%clk 0:00:30]}  Bf8 {[%clk 0:00:04]} 36. Rc7+ {[%clk 0:00:29]}  Kb6 {[%clk 0:00:04]} 37. Rf7 {[%clk 0:00:29]}  Re8 {[%clk 0:00:04]} 38. Bd4+ {[%clk 0:00:28]}  Bc5 {[%clk 0:00:04]} 39. Rf6+ {[%clk 0:00:26]}  Kb5 {[%clk 0:00:04]} 40. Bc3 {[%clk 0:00:27]}  Be3 {[%clk 0:00:02]} 41. Kb3 {[%clk 0:00:24]}  Bc4+ {[%clk 0:00:02]} 42. Kc2 {[%clk 0:00:24]}  Bf4 {[%clk 0:00:03]} 43. Rxf5+ {[%clk 0:00:24]}  Kc6 {[%clk 0:00:03]} 44. b3 {[%clk 0:00:23]}  Re2+ {[%clk 0:00:03]} 45. Kd1 {[%clk 0:00:23]}  Bd3 {[%clk 0:00:03]} 46. Rf6+ {[%clk 0:00:10]}  Kb5 {[%clk 0:00:03]} 47. Rf8 {[%clk 0:00:10]}  Rxg2 {[%clk 0:00:03]} 48. Rb8+ {[%clk 0:00:10]}  Kc6 {[%clk 0:00:03]} 49. Rd8 {[%clk 0:00:08]}  Be2+ {[%clk 0:00:03]} 50. Ke1 {[%clk 0:00:08]}  Bxf3 {[%clk 0:00:04]} 51. Rc8+ {[%clk 0:00:07]}  Kd7 {[%clk 0:00:04]} 52. Rg8 {[%clk 0:00:06]}  Bg3+ {[%clk 0:00:03]} 53. Kf1 {[%clk 0:00:06]}  Bf4 {[%clk 0:00:04]} 54. Rg7+ {[%clk 0:00:05]}  Kc6 {[%clk 0:00:04]} 55. Rf7 {[%clk 0:00:05]}  Rh2 {[%clk 0:00:04]} 56. Bd4 {[%clk 0:00:04]}  Bg2+ {[%clk 0:00:04]} 57. Kg1 {[%clk 0:00:05]}  Bxh3 {[%clk 0:00:03]} 58. Rxf4 {[%clk 0:00:04]}  Rg2+ {[%clk 0:00:04]} 59. Kh1 {[%clk 0:00:00]}  gxf4 {[%clk 0:00:05]} 0-1


[Site "https://www.chess.com"]